bitfinex/quotes_BTCUSD_20211001
["timestamp","ask_amount","ask_price","bid_price","bid_amount"]
[1633068148514,0.0508,43909.0,43908.0,0.27093756]
[1633068148971,0.0508,43909.0,43908.0,0.51751737]
[1633068149112,0.0508,43909.0,43908.0,0.48751737]
[1633068149312,0.0338,43909.0,43908.0,0.49059726]
[1633068149917,0.0338,43909.0,43908.0,0.52159726]
[1633068150113,0.0338,43909.0,43908.0,0.78474732]
[1633068150316,0.0338,43909.0,43908.0,0.78782721]
[1633068151113,0.0338,43909.0,43908.0,0.75682721]
[1633068151315,0.0338,43909.0,43908.0,0.7599071]
[1633068151913,0.0338,43909.0,43908.0,0.7909071]
[1633068152322,0.0338,43909.0,43908.0,0.79398699]
[1633068153316,0.0338,43909.0,43908.0,0.7659423]
[1633068153523,0.0338,43909.0,43908.0,0.76606688]
[1633068153920,0.0338,43909.0,43908.0,0.79706688]
[1633068154120,0.0338,43909.0,43908.0,0.55048707]
[1633068154519,0.0338,43909.0,43908.0,0.55356696]
[1633068155119,0.0338,43909.0,43908.0,0.8010502]
[1633068155320,0.0338,43909.0,43908.0,0.7700502]
[1633068155720,0.0338,43909.0,43908.0,0.50690014]
[1633068155920,0.0508,43909.0,43908.0,0.53790014]
[1633068156322,0.05067542,43909.0,43908.0,0.56365545]
[1633068157123,0.03367542,43909.0,43908.0,0.53265545]
[1633068157323,0.03367542,43909.0,43908.0,0.53561076]
[1633068157524,0.03367542,43909.0,43908.0,0.54097903]
[1633068157985,0.03367542,43909.0,43908.0,0.57297903]
[1633068158324,0.03367542,43909.0,43908.0,0.57593434]
[1633068159125,0.03367542,43909.0,43908.0,0.57297903]
[1633068159328,0.03367542,43909.0,43908.0,0.85479026]
[1633068159527,0.03367542,43909.0,43908.0,0.92279026]
[1633068159925,0.03367542,43909.0,43908.0,0.95579026]
[1633068160127,0.03072011,43909.0,43908.0,2.16479026]
[1633068160534,0.02900581,43916.0,43911.0,1.1]
[1633068160831,0.02900581,43916.0,43915.0,1.78449573]
[1633068161029,0.02900581,43916.0,43915.0,2.03824573]
[1633068161234,0.02900581,43916.0,43915.0,1.25283965]
[1633068161432,0.02900581,43916.0,43915.0,1.39832975]
[1633068162029,0.02900581,43916.0,43915.0,1.43232975]
[1633068162231,0.0008,43918.0,43916.0,1.1]
[1633068162437,0.64083086,43920.0,43919.0,0.228618]
[1633068162633,0.64083086,43920.0,43919.0,0.62285605]
[1633068162832,0.64083086,43920.0,43919.0,0.72285605]
[1633068163233,0.64083086,43920.0,43919.0,1.28754105]
[1633068163435,0.18552892,43920.0,43919.0,1.28754105]
[1633068163631,0.18552892,43920.0,43919.0,1.06970804]
[1633068164032,0.18552892,43920.0,43919.0,1.10270804]
[1633068164234,0.18552892,43920.0,43919.0,1.32590804]
[1633068164432,0.18552892,43920.0,43919.0,1.21270804]
[1633068165232,0.18552892,43920.0,43919.0,1.17970804]
[1633068165433,0.18552892,43920.0,43919.0,1.18760763]
[1633068165636,0.18539712,43920.0,43919.0,1.19053154]
[1633068166635,0.18539712,43920.0,43919.0,1.19098976]
[1633068167094,0.18539712,43920.0,43919.0,2.39998976]
[1633068167495,0.18547748,43920.0,43919.0,2.39998976]
[1633068167695,0.18547748,43920.0,43919.0,2.40291367]
[1633068168095,0.18547748,43920.0,43919.0,2.46691367]
[1633068168696,0.18547748,43920.0,43919.0,2.46983758]
[1633068169295,0.18547748,43920.0,43919.0,2.43783758]
[1633068169497,0.18547748,43920.0,43919.0,2.40583758]
[1633068169894,0.18547748,43920.0,43919.0,2.4062958]
[1633068170095,0.18547748,43920.0,43919.0,2.4382958]
[1633068170899,0.18547748,43920.0,43919.0,2.43875402]
[1633068171702,0.18547748,43920.0,43919.0,2.40675402]
[1633068171897,0.19905253,43920.0,43919.0,0.86282245]
[1633068172096,0.18547748,43920.0,43919.0,1.14802587]
[1633068172299,0.18547748,43920.0,43919.0,2.35702587]
[1633068172899,0.18547748,43920.0,43919.0,2.35994978]
[1633068173298,0.18547748,43920.0,43919.0,2.32794978]
[1633068173701,0.18547748,43920.0,43919.0,1.11894978]
[1633068174101,0.18547748,43920.0,43919.0,1.15094978]
[1633068174303,0.18547748,43920.0,43919.0,2.36287369]
[1633068175304,0.18547748,43920.0,43919.0,2.36333191]
[1633068175501,0.18547748,43920.0,43919.0,2.41333191]
[1633068175701,0.18547748,43920.0,43919.0,2.38133191]
[1633068175902,0.18547748,43920.0,43919.0,2.58133191]
[1633068176101,0.18547748,43920.0,43919.0,2.81333191]
[1633068176305,0.18547748,43920.0,43919.0,2.81379013]
[1633068177104,0.18547748,43920.0,43919.0,3.03699013]
[1633068177505,0.18547748,43920.0,43919.0,2.98471404]
[1633068177706,0.18547748,43920.0,43919.0,3.18471404]
[1633068178104,0.05416763,43920.0,43919.0,3.41671404]
[1633068178508,0.04916763,43920.0,43919.0,3.16791167]
[1633068178909,0.0006,43921.0,43920.0,1.1]
[1633068179109,0.0006,43921.0,43920.0,2.57258865]
[1633068179308,0.0006,43921.0,43920.0,2.67258865]
[1633068179514,0.0008,43924.0,43923.0,1.178618]
[1633068179515,0.00047542,43924.0,43923.0,1.178618]
[1633068179707,0.00047542,43924.0,43923.0,1.46843366]
[1633068179910,0.00047542,43924.0,43923.0,1.79163366]
[1633068180105,0.00047542,43924.0,43923.0,1.82563366]
[1633068180311,0.0004,43927.0,43926.0,1.328618]
[1633068180513,0.0004,43928.0,43926.0,1.34993915]
[1633068180708,0.0004,43928.0,43927.0,2.30305612]
[1633068180909,0.0004,43928.0,43927.0,2.42585612]
[1633068181109,0.0004,43928.0,43927.0,2.15102435]
[1633068181910,0.0004,43928.0,43927.0,2.15148257]
[1633068182111,0.0004,43928.0,43927.0,2.18548257]
[1633068182509,0.0139682,43928.0,43927.0,2.18548257]
[1633068182711,0.0004,43928.0,43927.0,2.18548257]
[1633068183511,0.0004,43928.0,43927.0,2.15194079]
[1633068183713,0.0004,43928.0,43927.0,2.13335013]
[1633068184112,0.0004,43928.0,43927.0,2.16735013]
[1633068184423,0.0004,43928.0,43927.0,0.28925835]
[1633068184424,0.30031089,43928.0,43927.0,0.28925835]
[1633068184619,0.0005301,43928.0,43927.0,0.20056392]
[1633068184813,0.12224033,43929.0,43927.0,0.20056392]
[1633068184814,0.12147296,43929.0,43927.0,0.20056392]
[1633068185015,0.0408,43929.0,43927.0,0.20056392]
[1633068185415,0.0413301,43929.0,43927.0,0.16656392]
[1633068185616,0.0408,43929.0,43927.0,0.16948783]
[1633068186020,0.0408,43929.0,43927.0,0.20248783]
[1633068186615,0.0408,43929.0,43927.0,0.20541174]
[1633068187418,0.0408,43929.0,43927.0,0.04268817]
[1633068187419,0.0413301,43929.0,43927.0,0.04268817]
[1633068187617,0.0413301,43929.0,43927.0,0.01261208]
[1633068187823,0.0408,43929.0,43927.0,0.01261208]
[1633068188222,0.0558,43929.0,43928.0,0.228524]
[1633068188418,0.07632709,43929.0,43927.0,0.04561208]
[1633068188621,0.07632709,43929.0,43928.0,0.228524]
[1633068188820,0.07632709,43929.0,43927.0,0.04061208]
[1633068189020,0.01394152,43928.0,43927.0,0.04061208]
[1633068189219,0.01394152,43928.0,43927.0,0.0410703]
[1633068189419,0.01394152,43928.0,43927.0,0.0080703]
[1633068189620,0.01394152,43928.0,43927.0,0.0134363]
[1633068189824,0.01334152,43928.0,43927.0,1.1134363]
[1633068190030,0.0004,43939.0,43937.0,0.50737016]
[1633068190224,0.0004,43939.0,43937.0,1.2640787]
[1633068190423,0.0004,43939.0,43937.0,1.9341088]
[1633068191021,0.0004,43939.0,43937.0,3.1431088]
[1633068191223,0.0002,43939.0,43937.0,3.1431088]
[1633068191424,0.0008,43941.0,43939.0,0.27980989]
[1633068191425,0.017,43940.0,43939.0,0.27980989]
[1633068191619,0.017,43940.0,43939.0,2.34414804]
[1633068191824,0.0002,43941.0,43940.0,1.1]
[1633068192026,0.0002,43941.0,43940.0,0.35754466]
[1633068192226,0.0002,43941.0,43940.0,0.25683786]
[1633068192227,0.22460862,43941.0,43940.0,0.25683786]
[1633068192424,0.00140862,43941.0,43940.0,0.228524]
[1633068193020,0.00140862,43941.0,43939.0,0.04292391]
[1633068193220,0.24457343,43941.0,43940.0,0.22898222]
[1633068193421,0.46777343,43941.0,43940.0,0.05045822]
[1633068193821,0.24457343,43941.0,43940.0,0.05045822]
[1633068194021,0.24457343,43941.0,43940.0,0.00045822]
[1633068194223,0.15779819,43941.0,43940.0,0.02491644]
[1633068194829,0.0002,43943.0,43940.0,0.02491644]
[1633068195028,0.00775322,43946.0,43941.0,0.00611111]
[1633068195224,0.09582756,43943.0,43941.0,0.00292391]
[1633068195621,0.09582756,43943.0,43942.0,0.02811579]
[1633068195820,0.00775322,43946.0,43941.0,0.00292391]
[1633068196020,0.17510081,43946.0,43941.0,0.23392636]
[1633068196222,0.17510081,43946.0,43941.0,0.25438458]
[1633068196721,0.00775322,43946.0,43941.0,0.25097402]
[1633068196922,0.10466575,43946.0,43942.0,0.228524]
[1633068197122,0.10466575,43946.0,43943.0,0.0266463]
[1633068197722,0.18439204,43945.0,43941.0,0.02630604]
[1633068198124,0.00775322,43946.0,43943.0,0.023]
[1633068198323,0.00775322,43946.0,43944.0,0.00678021]
[1633068199121,0.27025522,43945.0,43944.0,0.00678021]
[1633068199323,0.27025522,43945.0,43943.0,0.00045822]
[1633068199521,0.27025522,43945.0,43940.0,0.34206188]
[1633068199723,0.27025522,43945.0,43942.0,0.03848356]
[1633068199922,0.27025522,43945.0,43943.0,0.228524]
[1633068200126,0.27025522,43945.0,43944.0,0.03190732]
[1633068200324,0.1802648,43945.0,43944.0,0.02690732]
[1633068200524,0.1802648,43945.0,43944.0,0.03833029]
[1633068200725,0.1802648,43945.0,43944.0,0.04369417]
[1633068200929,0.1802648,43945.0,43944.0,0.04661808]
[1633068201326,0.1802648,43945.0,43944.0,0.00828779]
[1633068202328,0.00775322,43946.0,43944.0,0.23272471]
[1633068202527,0.00775322,43946.0,43945.0,0.01314605]
[1633068203429,0.15222961,43946.0,43945.0,0.01314605]
[1633068203629,0.21039961,43946.0,43945.0,0.01606996]
[1633068204229,0.21039961,43946.0,43945.0,0.03306996]
[1633068204430,0.06592322,43946.0,43945.0,0.03306996]
[1633068204630,0.06579864,43946.0,43945.0,0.03352818]
[1633068205431,0.40723164,43946.0,43945.0,0.01652818]
[1633068205629,0.40723164,43946.0,43945.0,0.01945209]
[1633068206032,0.06579864,43946.0,43945.0,0.01945209]
[1633068206232,0.06579864,43946.0,43945.0,0.02130604]
[1633068206833,0.06579864,43946.0,43945.0,0.02422995]
[1633068207436,0.06579864,43946.0,43945.0,0.00922995]
[1633068208034,0.06579864,43946.0,43945.0,0.01215386]
[1633068208236,0.06579864,43946.0,43945.0,0.01715386]
[1633068208436,0.0659,43946.0,43945.0,0.01715386]
[1633068208834,0.0659,43946.0,43945.0,0.00524787]
[1633068209097,0.06294469,43946.0,43945.0,0.00524787]
[1633068209496,0.1584303,43946.0,43945.0,0.00024787]
[1633068209696,0.1584303,43946.0,43945.0,0.00317178]
[1633068209895,0.05847136,43946.0,43945.0,0.00317178]
[1633068210096,0.05294469,43946.0,43945.0,0.00817178]
[1633068210695,0.05294469,43946.0,43945.0,0.00863]
[1633068211498,0.05294469,43946.0,43945.0,0.00363]
[1633068211697,0.05294469,43946.0,43945.0,0.20363]
[1633068212112,0.05294469,43946.0,43945.0,0.52041397]
[1633068212510,0.05294469,43946.0,43945.0,0.72041397]
[1633068212711,0.04294469,43946.0,43945.0,0.46155391]
[1633068213112,0.04294469,43946.0,43945.0,0.46201213]
[1633068213513,0.04294469,43946.0,43945.0,0.45701213]
[1633068214110,0.04294469,43946.0,43945.0,0.47693604]
[1633068214315,0.12097196,43948.0,43946.0,1.1]
[1633068214316,0.001,43948.0,43946.0,1.1]
[1633068214525,0.0006,43951.0,43949.0,0.00125597]
[1633068214813,0.00066138,43955.0,43951.0,0.228524]
[1633068215018,0.00066138,43955.0,43952.0,0.21136533]
[1633068215218,0.07728165,43955.0,43952.0,0.43946932]
[1633068215414,0.312782,43954.0,43952.0,0.43446932]
[1633068215617,0.302782,43954.0,43953.0,0.27574367]
[1633068215814,0.302782,43954.0,43953.0,0.32891367]
[1633068216015,0.302782,43954.0,43953.0,0.10038967]
[1633068216218,0.302782,43954.0,43953.0,0.11384789]
[1633068216617,0.302782,43954.0,43953.0,0.32474098]
[1633068217223,0.00066138,43955.0,43953.0,0.32474098]
[1633068217415,0.00066138,43955.0,43954.0,0.0048403]
[1633068217617,0.341547,43957.0,43954.0,0.0048403]
[1633068217817,0.33880838,43957.0,43954.0,0.0048403]
[1633068218318,0.33880838,43957.0,43954.0,0.00529852]
[1633068218517,0.33880838,43957.0,43955.0,0.02470855]
[1633068218718,0.33880838,43957.0,43956.0,0.05317]
[1633068218921,0.0008,43958.0,43956.0,0.03215746]
[1633068219518,0.0008,43958.0,43956.0,0.03261568]
[1633068219719,0.0008,43958.0,43957.0,0.00469079]
[1633068221121,0.0008,43958.0,43956.0,0.00591644]
[1633068221522,0.0008,43958.0,43956.0,0.00384035]
[1633068222120,0.08914022,43957.0,43956.0,0.00384035]
[1633068222322,0.08914022,43957.0,43956.0,0.04077514]
[1633068222521,0.08414022,43957.0,43956.0,0.01829857]
[1633068222729,1.09126809,43957.0,43956.0,0.01829857]
[1633068222929,1.1485815,43957.0,43956.0,0.01829857]
[1633068223327,1.0485815,43957.0,43956.0,0.01829857]
[1633068223523,1.0485815,43957.0,43956.0,0.00429857]
[1633068223723,0.136324,43956.0,43953.0,0.00338213]
[1633068224326,0.2232,43955.0,43953.0,0.01638213]
[1633068224526,0.228524,43954.0,43953.0,0.01638213]
[1633068224726,0.49748098,43954.0,43953.0,0.01930604]
[1633068224925,0.50371274,43954.0,43953.0,0.01930604]
[1633068225327,0.49748098,43954.0,43953.0,0.05067297]
[1633068225525,0.49748098,43954.0,43953.0,0.03767297]
[1633068225724,0.341413,43955.0,43953.0,0.03767297]
[1633068225926,0.341413,43955.0,43954.0,0.02491229]
[1633068226125,0.477737,43955.0,43954.0,0.03027503]
[1633068226326,0.515737,43955.0,43954.0,0.03027503]
[1633068226724,0.51561242,43955.0,43954.0,0.03027503]
[1633068226924,0.67615282,43955.0,43954.0,0.03027503]
[1633068227125,0.67506382,43955.0,43954.0,0.03027503]
[1633068227524,0.51452342,43955.0,43954.0,0.03027503]
[1633068227727,0.47652342,43955.0,43954.0,0.00536274]
[1633068228330,0.5150652,43955.0,43954.0,0.00536274]
[1633068228529,0.5050652,43955.0,43954.0,0.00536274]
[1633068228728,0.3687412,43955.0,43954.0,0.00536274]
[1633068228929,0.3687412,43955.0,43954.0,0.25737565]
[1633068229130,0.039,43955.0,43954.0,0.25737565]
[1633068229529,0.039,43955.0,43954.0,0.00536274]
[1633068229730,0.00010045,43955.0,43954.0,0.00536274]
[1633068230333,0.03410045,43955.0,43954.0,0.01136274]
[1633068231734,0.00010045,43955.0,43954.0,0.00536274]
[1633068232332,0.03210045,43955.0,43954.0,0.01236274]
[1633068233131,0.02914514,43955.0,43954.0,0.01236274]
[1633068233530,0.341368,43956.0,43954.0,0.00536274]
[1633068233734,0.0008,43958.0,43955.0,0.02391]
[1633068234336,0.0218,43958.0,43955.0,0.05191]
[1633068234635,0.0218,43958.0,43957.0,0.21598172]
[1633068235235,0.0218,43958.0,43957.0,0.22672208]
[1633068235634,0.0008,43958.0,43957.0,0.22672208]
[1633068235834,0.0008,43958.0,43957.0,0.01074036]
[1633068236040,0.0008,43958.0,43955.0,0.4]
[1633068236239,0.0298,43958.0,43957.0,0.02]
[1633068236636,0.0298,43958.0,43957.0,0.04374326]
[1633068236835,0.0298,43958.0,43957.0,0.29511877]
[1633068237240,0.0298,43958.0,43957.0,0.04374326]
[1633068237635,0.0298,43958.0,43955.0,0.4]
[1633068237636,0.0008,43958.0,43955.0,0.4]
[1633068237836,0.0006,43959.0,43958.0,0.1992]
[1633068238037,0.0006,43959.0,43958.0,0.46115396]
[1633068238238,0.0006,43959.0,43958.0,0.70885498]
[1633068238636,0.0006,43959.0,43958.0,0.90885498]
[1633068238844,0.0006,43959.0,43958.0,0.74292646]
[1633068239039,0.0006,43959.0,43958.0,0.54531693]
[1633068239241,0.0006,43959.0,43958.0,0.69751724]
[1633068239442,0.0006,43959.0,43958.0,0.46395609]
[1633068240039,0.0006,43959.0,43958.0,0.74279757]
[1633068240040,0.00069389,43959.0,43958.0,0.74279757]
[1633068240239,0.00069389,43959.0,43958.0,0.77379757]
[1633068240442,0.00069389,43959.0,43958.0,0.49495609]
[1633068240643,0.00069389,43959.0,43958.0,0.4936601]
[1633068240841,0.00069389,43959.0,43958.0,0.4932601]
[1633068241040,0.00069389,43959.0,43958.0,0.2538]
[1633068241443,0.00069389,43959.0,43958.0,0.2228]
[1633068242040,0.10059389,43959.0,43958.0,0.2228]
[1633068242240,0.10059389,43959.0,43958.0,0.2498]
[1633068242642,0.10059389,43959.0,43958.0,0.2228]
[1633068242840,0.10059389,43959.0,43958.0,0.46919181]
[1633068243441,0.10059389,43959.0,43958.0,0.2228]
[1633068244243,0.10059389,43959.0,43958.0,0.50093005]
[1633068244843,0.10059389,43959.0,43958.0,0.72945405]
[1633068245308,0.10059389,43959.0,43958.0,0.73025441]
[1633068245515,0.09779389,43959.0,43958.0,2.05469364]
[1633068245716,0.0006,43963.0,43958.0,2.05469364]
[1633068245717,0.50851032,43969.0,43961.0,1.328524]
[1633068245913,0.50851032,43969.0,43968.0,0.50245952]
[1633068246109,0.50851032,43969.0,43968.0,1.13187248]
[1633068246311,0.50851032,43969.0,43968.0,1.17097013]
[1633068246512,0.50851032,43969.0,43968.0,0.56838377]
[1633068246911,0.50851032,43969.0,43968.0,0.33389359]
[1633068247113,0.50851032,43969.0,43968.0,0.03841382]
[1633068247314,0.50851032,43969.0,43961.0,0.033]
[1633068247515,0.50851032,43969.0,43963.0,0.03759019]
[1633068247914,0.50851032,43969.0,43964.0,0.18275114]
[1633068248315,0.50851032,43969.0,43966.0,0.03658229]
[1633068248816,0.50851032,43969.0,43965.0,0.0223962]
[1633068249218,0.15901791,43968.0,43965.0,0.27822835]
[1633068249418,0.50851032,43969.0,43966.0,0.11280566]
[1633068249614,0.50851032,43969.0,43966.0,0.0245154]
[1633068249814,0.50851032,43969.0,43966.0,0.2519849]
[1633068250014,0.50851032,43969.0,43967.0,0.02911571]
[1633068250217,0.341289,43967.0,43964.0,0.4]
[1633068250415,0.341289,43967.0,43966.0,0.024]
[1633068250616,0.34116442,43967.0,43966.0,0.05119308]
[1633068250816,0.34116442,43967.0,43966.0,0.024]
[1633068251418,0.34116442,43967.0,43966.0,2.67766296]
[1633068251419,0.01671823,43967.0,43966.0,2.67766296]
[1633068251619,0.01626001,43967.0,43966.0,2.90618696]
[1633068251819,0.01626001,43967.0,43966.0,2.90654808]
[1633068252015,9.381e-05,43968.0,43967.0,0.18373999]
[1633068252215,9.381e-05,43968.0,43967.0,0.42777003]
[1633068253416,0.13150351,43968.0,43967.0,0.42777003]
[1633068253815,0.13150351,43968.0,43967.0,0.19924603]
[1633068254421,0.13150351,43968.0,43967.0,0.21424603]
[1633068254620,9.381e-05,43968.0,43967.0,0.21424603]
[1633068255220,9.381e-05,43968.0,43967.0,0.49775119]
[1633068255419,9.381e-05,43968.0,43967.0,0.72680529]
[1633068255619,9.381e-05,43968.0,43967.0,0.71180529]
[1633068255819,9.381e-05,43968.0,43967.0,0.8071234]
[1633068256220,0.50564882,43969.0,43968.0,0.569705]
[1633068256418,0.50564882,43969.0,43968.0,1.06554167]
[1633068256618,0.50564882,43969.0,43968.0,1.06054167]
[1633068256819,0.50564882,43969.0,43968.0,1.17054167]
[1633068258221,0.50564882,43969.0,43968.0,0.90556311]
[1633068258421,0.50564882,43969.0,43968.0,0.93956311]
[1633068259423,0.50564882,43969.0,43968.0,0.59838211]
[1633068259824,0.50564882,43969.0,43968.0,0.56438211]
[1633068260426,0.50564882,43969.0,43968.0,0.85605296]
[1633068260629,0.56381882,43969.0,43968.0,0.85605296]
[1633068260827,0.56381882,43969.0,43968.0,0.8573202]
[1633068261027,0.56390335,43969.0,43968.0,0.8573202]
[1633068261227,0.56390335,43969.0,43968.0,0.85443319]
[1633068261628,0.56390335,43969.0,43968.0,0.82043319]
[1633068262229,0.56390335,43969.0,43968.0,0.81543319]
[1633068262430,0.19214009,43969.0,43968.0,0.84843319]
[1633068262833,0.19214009,43969.0,43968.0,0.94843319]
[1633068263029,0.19214009,43969.0,43968.0,1.17163319]
[1633068263236,0.19214009,43969.0,43968.0,0.94843319]
[1633068263429,0.19214009,43969.0,43968.0,0.68076234]
[1633068263633,0.19214009,43969.0,43968.0,0.64776234]
[1633068263833,0.19214009,43969.0,43968.0,0.48842234]
[1633068264032,0.19214009,43969.0,43968.0,0.73144461]
[1633068264234,0.19214009,43969.0,43968.0,0.48842234]
[1633068264435,0.19214009,43969.0,43968.0,0.52142234]
[1633068265236,0.19214009,43969.0,43968.0,1.06627134]
[1633068265436,0.19214009,43969.0,43968.0,1.11627134]
[1633068265635,0.19214009,43969.0,43968.0,1.30647134]
[1633068265834,0.19214009,43969.0,43968.0,1.08327134]
[1633068266034,0.19214009,43969.0,43968.0,1.07827134]
[1633068266235,0.19214009,43969.0,43968.0,2.28727134]
[1633068266434,0.19214009,43969.0,43968.0,1.7762227]
[1633068266839,0.19214009,43969.0,43968.0,1.9994227]
[1633068266840,0.065875,43969.0,43968.0,1.9994227]
[1633068267035,0.065875,43969.0,43968.0,2.0501327]
[1633068267236,0.06637875,43969.0,43968.0,2.0501327]
[1633068267833,0.06637875,43969.0,43968.0,2.18565535]
[1633068268435,0.06637875,43969.0,43968.0,2.21865535]
[1633068269640,0.06637875,43969.0,43968.0,2.16794535]
[1633068269838,0.06637875,43969.0,43968.0,2.13494535]
[1633068270439,0.06637875,43969.0,43968.0,2.17094535]
[1633068270638,0.06637875,43969.0,43968.0,2.17842184]
[1633068270838,0.06637875,43969.0,43968.0,2.17895194]
[1633068271238,0.06637875,43969.0,43968.0,2.74845194]
[1633068271640,0.06637875,43969.0,43968.0,2.52525194]
[1633068271843,0.06637875,43969.0,43968.0,2.48925194]
[1633068272443,0.06637875,43969.0,43968.0,2.53025194]
[1633068272840,0.06637875,43969.0,43968.0,2.52972184]
[1633068273041,0.06637875,43969.0,43968.0,1.35219919]
[1633068273641,0.06637875,43969.0,43968.0,1.55219919]
[1633068273841,0.06625417,43969.0,43968.0,1.55219919]
[1633068274041,0.06625417,43969.0,43968.0,1.71910943]
[1633068274442,0.06625417,43969.0,43968.0,1.91710943]
[1633068274841,0.06625417,43969.0,43968.0,1.80210943]
[1633068275440,0.06579595,43969.0,43968.0,1.80210943]
[1633068275642,0.0008,43981.0,43976.0,0.48653552]
[1633068275843,0.0008,43981.0,43976.0,2.29798668]
[1633068276041,0.0008,43981.0,43976.0,1.18898668]
[1633068276243,0.0008,43981.0,43976.0,1.04112395]
[1633068276441,0.0008,43981.0,43976.0,1.07412395]
[1633068276641,0.0008,43981.0,43976.0,0.97412395]
[1633068276843,0.0004,43980.0,43976.0,0.97412395]
[1633068277043,0.0006,43990.0,43977.0,0.23587503]
[1633068277241,0.12191234,43987.0,43979.0,0.00764449]
[1633068277443,0.12191234,43987.0,43980.0,0.0228]
[1633068277642,0.12191234,43987.0,43981.0,0.05817]
[1633068277846,0.18396221,43987.0,43982.0,0.00801544]
[1633068278044,0.11831234,43987.0,43982.0,0.00801544]
[1633068278245,0.34572834,43987.0,43982.0,0.00801544]
[1633068278443,0.34572834,43987.0,43982.0,0.03201544]
[1633068278647,0.34572834,43987.0,43983.0,0.05817]
[1633068278843,0.34072834,43987.0,43983.0,0.03271251]
[1633068279042,0.34072834,43987.0,43982.0,0.024]
[1633068279241,0.2232,43985.0,43982.0,0.024]
[1633068279443,0.341139,43986.0,43983.0,0.00535914]
[1633068279644,0.228361,43985.0,43983.0,0.00535914]
[1633068279844,0.03690364,43985.0,43983.0,0.00535914]
[1633068280448,0.00854264,43985.0,43983.0,0.02935914]
[1633068280645,0.06645229,43988.0,43984.0,0.26881079]
[1633068280845,0.0008,43988.0,43985.0,0.02372544]
[1633068281244,0.0008,43988.0,43983.0,0.02935914]
[1633068281445,0.28788321,43987.0,43984.0,0.01151862]
[1633068281643,0.12102237,43987.0,43983.0,0.02935914]
[1633068281847,0.31783622,43976.0,43975.0,0.00129464]
[1633068282046,0.07137463,43975.0,43968.0,0.60080036]
[1633068282246,0.27764512,43974.0,43970.0,0.228337]
[1633068282444,0.0012894,43971.0,43970.0,0.228337]
[1633068282847,0.09700368,43973.0,43970.0,0.24002322]
[1633068283048,0.09700368,43973.0,43970.0,0.228337]
[1633068283049,0.01797325,43972.0,43970.0,0.228337]
[1633068283246,0.35920425,43972.0,43970.0,0.228337]
[1633068283445,0.26888458,43971.0,43968.0,0.60080036]
[1633068283645,0.02019088,43970.0,43968.0,0.60080036]
[1633068284247,0.02143195,43970.0,43968.0,0.60080036]
[1633068284449,0.39368595,43970.0,43969.0,0.425]
[1633068284648,0.67436093,43970.0,43969.0,0.425]
[1633068284847,0.89756093,43970.0,43969.0,0.425]
[1633068285047,0.89756093,43970.0,43969.0,0.4303609]
[1633068285250,0.05119088,43970.0,43969.0,0.43116126]
[1633068285454,0.05119088,43970.0,43969.0,0.68333964]
[1633068285455,0.031,43970.0,43969.0,0.68333964]
[1633068285849,0.3982997,43974.0,43969.0,0.65833964]
[1633068286051,0.00126505,43971.0,43970.0,0.02369898]
[1633068287507,0.00126505,43971.0,43970.0,0.13369898]
[1633068288110,0.227484,43975.0,43970.0,0.36203598]
[1633068288313,0.227484,43975.0,43971.0,0.0287197]
[1633068288510,0.227484,43975.0,43972.0,0.0408931]
[1633068289108,0.227484,43975.0,43972.0,0.0358931]
[1633068289315,0.227484,43975.0,43973.0,0.02110333]
[1633068289508,0.31904603,43976.0,43973.0,0.02110333]
[1633068289711,0.31904603,43976.0,43971.0,0.02554274]
[1633068290311,0.31783622,43976.0,43972.0,0.38464238]
[1633068290512,0.33783622,43976.0,43972.0,0.43464238]
[1633068290710,0.33783622,43976.0,43973.0,0.20707178]
[1633068291111,0.33783622,43976.0,43974.0,0.02957396]
[1633068291712,0.31783622,43976.0,43974.0,0.02957396]
[1633068291913,0.00120951,43975.0,43974.0,0.02957396]
[1633068292113,0.00120951,43975.0,43971.0,0.00536041]
[1633068292312,0.00120951,43975.0,43972.0,0.01063831]
[1633068292520,0.00120951,43975.0,43973.0,1.1228]
[1633068292521,8.089e-05,43974.0,43973.0,1.1228]
[1633068292714,8.089e-05,43974.0,43973.0,1.36759438]
[1633068292911,8.089e-05,43974.0,43973.0,1.75873938]
[1633068293313,8.089e-05,43974.0,43973.0,1.98917906]
[1633068293515,8.089e-05,43974.0,43973.0,2.42820948]
[1633068293712,8.089e-05,43974.0,43973.0,2.52820948]
[1633068294112,8.089e-05,43974.0,43973.0,1.54074898]
[1633068294315,8.089e-05,43974.0,43973.0,1.76394898]
[1633068294513,0.06572024,43985.0,43975.0,0.228337]
[1633068294713,0.06571824,43986.0,43981.0,0.00127533]
[1633068294914,0.0657167,43987.0,43983.0,0.0366551]
[1633068295111,0.0657167,43987.0,43984.0,0.26635069]
[1633068295313,0.0657167,43987.0,43985.0,0.02101786]
[1633068295714,0.0557167,43987.0,43985.0,0.02101786]
[1633068295913,0.06650894,43988.0,43986.0,0.228337]
[1633068296130,0.06650894,43988.0,43987.0,0.26903201]
[1633068296326,0.06650894,43988.0,43987.0,0.02169511]
[1633068296527,0.06650894,43988.0,43986.0,0.022]
[1633068297125,0.0008,43988.0,43986.0,0.022]
[1633068297329,0.0008,43988.0,43986.0,0.27670752]
[1633068297727,0.0008,43988.0,43986.0,0.32670752]
[1633068297928,0.00067542,43988.0,43986.0,0.30470752]
[1633068298330,0.00067542,43988.0,43986.0,0.05]
[1633068298531,0.00067542,43988.0,43986.0,0.075]
[1633068298735,0.00067542,43988.0,43986.0,0.025]
[1633068298927,0.0002172,43988.0,43986.0,0.025]
[1633068299728,0.0002172,43988.0,43986.0,0.02142752]
[1633068299928,0.0002172,43988.0,43986.0,0.25081784]
[1633068300127,0.0002172,43988.0,43986.0,0.30081784]
[1633068300527,0.0002172,43988.0,43986.0,0.029]
[1633068301726,0.0002172,43988.0,43986.0,0.27948612]
[1633068301927,0.0002172,43988.0,43985.0,0.02815885]
[1633068302129,0.0002172,43988.0,43986.0,0.0108994]
[1633068303129,8.741e-05,43987.0,43986.0,0.0108994]
[1633068304328,8.741e-05,43987.0,43986.0,0.3519444]
[1633068304530,8.741e-05,43987.0,43986.0,0.4319444]
[1633068304932,0.0381493,43989.0,43986.0,0.4319444]
[1633068305131,0.0381493,43989.0,43987.0,0.13486382]
[1633068305329,0.0381493,43989.0,43988.0,0.22734714]
[1633068305534,0.0381493,43989.0,43988.0,0.0305567]
[1633068306533,0.0381493,43989.0,43988.0,0.3890914]
[1633068306730,0.0381493,43989.0,43988.0,0.1695567]
[1633068306933,0.0381493,43989.0,43988.0,2.05198211]
[1633068307132,0.05873208,43989.0,43988.0,2.02758427]
[1633068307833,0.55873208,43989.0,43988.0,1.99858427]
[1633068308034,1.12304208,43989.0,43988.0,0.11615886]
[1633068308237,1.12304208,43989.0,43988.0,0.08064737]
[1633068308238,1.4529985,43989.0,43988.0,0.08064737]
[1633068308434,0.95426093,43989.0,43988.0,0.08064737]